Workbook

Sheet Sheet1
A1: 2022年青岛西海岸新区第二批公开招聘非事业编制幼儿教师面试总成绩
A2: 序号 | B2: 姓名 | C2: 性别 | D2: 职位名称 | E2: 报名编号 | F2: 说课成绩 | G2: 技能测试成绩 | H2: 总成绩 | I2: 是否进入考察范围 | J2: 是否等额考察人员 | K2: 备注
A3: 1 | B3: 王馨浩 | C3: 女 | D3: 幼儿教师职位一 | E3: 215124863579529601 | F3: 86.20 | G3: 76.80 | H3: =F3*0.5+G3*0.5 -> 81.50 | I3: Y | J3: 是
A4: 2 | B4: 丁乙 | C4: 女 | D4: 幼儿教师职位一 | E4: 214830632117879858 | F4: 79.20 | G4: 77.20 | H4: 78.20 | I4: Y | J4: 是
A5: 3 | B5: 马万里 | C5: 男 | D5: 幼儿教师职位一 | E5: 214778719712293158 | F5: 83.00 | G5: 72.80 | H5: 77.90 | I5: Y | J5: 是
A6: 4 | B6: 高一心 | C6: 女 | D6: 幼儿教师职位一 | E6: 214729090756916495 | F6: 83.40 | G6: 72.10 | H6: 77.75 | I6: Y | J6: 是
A7: 5 | B7: 王亚珍 | C7: 女 | D7: 幼儿教师职位一 | E7: 215065376655131090 | F7: 77.80 | G7: 71.60 | H7: 74.70 | I7: Y | J7: 是
A8: 6 | B8: 孙怡 | C8: 女 | D8: 幼儿教师职位一 | E8: 214322960830554229 | F8: 78.00 | G8: 69.80 | H8: 73.90 | I8: Y | J8: 是
A9: 7 | B9: 杨帼娇 | C9: 女 | D9: 幼儿教师职位一 | E9: 214740204312064633 | F9: 74.80 | G9: 66.20 | H9: 70.50 | I9: Y | J9: 是
A10: 8 | B10: 王维维 | C10: 女 | D10: 幼儿教师职位一 | E10: 214846854398210804 | F10: 66.20 | G10: 62.40 | H10: 64.30 | I10: Y | J10: 是
A11: 9 | B11: 邱芳 | C11: 女 | D11: 幼儿教师职位一 | E11: 214378088950300808 | F11: 60.60 | G11: 62.70 | H11: 61.65 | I11: Y
A12: 10 | B12: 薛璐 | C12: 女 | D12: 幼儿教师职位一 | E12: 214734424535961828 | F12: 62.00 | G12: 58.80 | H12: 60.40
A13: 11 | B13: 李晓玲 | C13: 女 | D13: 幼儿教师职位一 | E13: 214389330234560704 | F13: 54.60 | G13: 65.30 | H13: 59.95
A14: 12 | B14: 祝雪 | C14: 女 | D14: 幼儿教师职位一 | E14: 215058937488229635 | F14: 64.80 | G14: 25.70 | H14: 45.25
A15: 13 | B15: 卢豪芹 | C15: 女 | D15: 幼儿教师职位一 | E15: 214765401803018460 | K15: 缺考
A16: 14 | B16: 仲梦捷 | C16: 女 | D16: 幼儿教师职位一 | E16: 214878210310144855 | K16: 缺考
A17: 15 | B17: 于双 | C17: 女 | D17: 幼儿教师职位二 | E17: 214338239924941306 | F17: 76.60 | G17: 79.00 | H17: 77.80 | I17: Y | J17: 是
A18: 16 | B18: 李娜 | C18: 女 | D18: 幼儿教师职位二 | E18: 214687247122026789 | F18: 78.20 | G18: 74.00 | H18: 76.10 | I18: Y | J18: 是
A19: 17 | B19: 丁洁 | C19: 女 | D19: 幼儿教师职位二 | E19: 214388286473584754 | F19: 77.00 | G19: 74.20 | H19: 75.60 | I19: Y | J19: 是
A20: 18 | B20: 刘瑶瑶 | C20: 女 | D20: 幼儿教师职位二 | E20: 214789362448204525 | F20: 77.80 | G20: 71.40 | H20: 74.60 | I20: Y | J20: 是
A21: 19 | B21: 宋娅玉 | C21: 女 | D21: 幼儿教师职位二 | E21: 214469273652007074 | F21: 76.40 | G21: 66.80 | H21: 71.60 | I21: Y | J21: 是
A22: 20 | B22: 韩佳英 | C22: 女 | D22: 幼儿教师职位二 | E22: 215063964185396172 | F22: 71.80 | G22: 70.60 | H22: 71.20 | I22: Y | J22: 是
A23: 21 | B23: 韩志新 | C23: 男 | D23: 幼儿教师职位二 | E23: 214384982381166938 | F23: 69.10 | G23: 68.80 | H23: 68.95 | I23: Y | J23: 是
A24: 22 | B24: 潘鑫鑫 | C24: 女 | D24: 幼儿教师职位二 | E24: 215016351167825040 | F24: 72.80 | G24: 64.60 | H24: 68.70 | I24: Y | J24: 是
A25: 23 | B25: 孙铭 | C25: 女 | D25: 幼儿教师职位二 | E25: 215032882912179950 | F25: 71.80 | G25: 63.80 | H25: 67.80 | I25: Y | J25: 是
A26: 24 | B26: 王瑜菲 | C26: 女 | D26: 幼儿教师职位二 | E26: 214437743261114638 | F26: 68.40 | G26: 67.00 | H26: 67.70 | I26: Y | J26: 是
A27: 25 | B27: 王楠 | C27: 女 | D27: 幼儿教师职位二 | E27: 214695727178445366 | F27: 71.00 | G27: 64.20 | H27: 67.60 | I27: Y | J27: 是
A28: 26 | B28: 李艺璇 | C28: 女 | D28: 幼儿教师职位二 | E28: 215102386618945863 | F28: 69.60 | G28: 60.60 | H28: 65.10 | I28: Y | J28: 是
A29: 27 | B29: 李玉宁 | C29: 男 | D29: 幼儿教师职位二 | E29: 214349442483106356 | F29: 68.20 | G29: 61.20 | H29: 64.70 | I29: Y | J29: 是
A30: 28 | B30: 崔宁 | C30: 女 | D30: 幼儿教师职位二 | E30: 215113538426106869 | F30: 66.60 | G30: 62.20 | H30: 64.40 | I30: Y | J30: 是
A31: 29 | B31: 范洁 | C31: 女 | D31: 幼儿教师职位二 | E31: 214415745541624123 | F31: 62.00 | G31: 65.20 | H31: 63.60 | I31: Y | J31: 是
A32: 30 | B32: 张国秀 | C32: 女 | D32: 幼儿教师职位二 | E32: 215109280519606612 | F32: 54.40 | G32: 54.00 | H32: 54.20
A33: 31 | B33: 姜晓慧 | C33: 女 | D33: 幼儿教师职位二 | E33: 215081508631872519 | F33: 0.00 | G33: 0.00 | H33: 0.00
A34: 32 | B34: 孙倩倩 | C34: 女 | D34: 幼儿教师职位二 | E34: 214397506656923995 | K34: 缺考
A35: 33 | B35: 任宁宁 | C35: 女 | D35: 幼儿教师职位二 | E35: 214436770589335812 | K35: 缺考
A36: 34 | B36: 高欣 | C36: 女 | D36: 幼儿教师职位二 | E36: 214706290088460575 | K36: 缺考
A37: 35 | B37: 公绪静 | C37: 女 | D37: 幼儿教师职位三 | E37: 215081307867398452 | F37: 80.62 | G37: 66.36 | H37: =AVERAGE(C37:G37) -> 73.49 | I37: Y | J37: 是
A38: 36 | B38: 张鑫 | C38: 女 | D38: 幼儿教师职位三 | E38: 214777035632034791 | F38: 74.66 | G38: 61.66 | H38: 68.16 | I38: Y | J38: 是
A39: 37 | B39: 吕若楠 | C39: 女 | D39: 幼儿教师职位三 | E39: 214738520064061638 | F39: 74.10 | G39: 61.30 | H39: 67.70 | I39: Y | J39: 是
A40: 38 | B40: 张安荣 | C40: 女 | D40: 幼儿教师职位三 | E40: 215135618144024901 | F40: 78.50 | G40: 51.90 | H40: 65.20
A41: 39 | B41: 刘春慧 | C41: 女 | D41: 幼儿教师职位四 | E41: 214321892256022609 | F41: 91.50 | G41: 86.90 | H41: 89.20 | I41: Y | J41: 是
A42: 40 | B42: 臧奕安 | C42: 男 | D42: 幼儿教师职位四 | E42: 214352416383164602 | F42: 88.70 | G42: 77.30 | H42: 83.00 | I42: Y | J42: 是
A43: 41 | B43: 刘一萍 | C43: 女 | D43: 幼儿教师职位四 | E43: 214418375181529210 | F43: 88.90 | G43: 76.56 | H43: 82.73 | I43: Y | J43: 是
A44: 42 | B44: 刘桂华 | C44: 女 | D44: 幼儿教师职位四 | E44: 214319250138124345 | F44: 82.46 | G44: 80.10 | H44: 81.28 | I44: Y | J44: 是
A45: 43 | B45: 赵霞 | C45: 女 | D45: 幼儿教师职位四 | E45: 214323167320228126 | F45: 87.30 | G45: 72.30 | H45: 79.80 | I45: Y | J45: 是
A46: 44 | B46: 张雪梅 | C46: 女 | D46: 幼儿教师职位四 | E46: 214788756811788587 | F46: 85.90 | G46: 73.30 | H46: 79.60 | I46: Y | J46: 是
A47: 45 | B47: 马红梅 | C47: 女 | D47: 幼儿教师职位四 | E47: 214403937233760368 | F47: 85.30 | G47: 73.86 | H47: 79.58 | I47: Y | J47: 是
A48: 46 | B48: 崔雪 | C48: 女 | D48: 幼儿教师职位四 | E48: 214355772140888172 | F48: 85.30 | G48: 73.50 | H48: 79.40 | I48: Y | J48: 是
A49: 47 | B49: 崔焕霞 | C49: 女 | D49: 幼儿教师职位四 | E49: 214406349671604347 | F49: 85.30 | G49: 73.30 | H49: 79.30 | I49: Y
A50: 48 | B50: 薛珊 | C50: 女 | D50: 幼儿教师职位四 | E50: 214528746802250242 | F50: 78.26 | G50: 78.98 | H50: 78.62 | I50: Y
A51: 49 | B51: 马海燕 | C51: 女 | D51: 幼儿教师职位四 | E51: 214322571049607240 | F51: 85.50 | G51: 70.30 | H51: 77.90 | I51: Y
A52: 50 | B52: 李颖 | C52: 女 | D52: 幼儿教师职位四 | E52: 214429755330687169 | F52: 81.86 | G52: 73.70 | H52: 77.78 | I52: Y
A53: 51 | B53: 申婕 | C53: 女 | D53: 幼儿教师职位四 | E53: 214533426072777185 | F53: 81.46 | G53: 74.06 | H53: 77.76
A54: 52 | B54: 孙爽 | C54: 女 | D54: 幼儿教师职位四 | E54: 214410912004796535 | F54: 85.50 | G54: 66.46 | H54: 75.98
A55: 53 | B55: 沈悦 | C55: 女 | D55: 幼儿教师职位四 | E55: 214325987478073534 | F55: 84.90 | G55: 66.10 | H55: 75.50
A56: 54 | B56: 刘鑫 | C56: 女 | D56: 幼儿教师职位四 | E56: 214444456202727832 | F56: 79.90 | G56: 70.46 | H56: 75.18
A57: 55 | B57: 宋海兰 | C57: 女 | D57: 幼儿教师职位四 | E57: 214495886120792203 | F57: 80.06 | G57: 68.06 | H57: 74.06
A58: 56 | B58: 彭志柳 | C58: 女 | D58: 幼儿教师职位四 | E58: 215069985922560278 | F58: 76.70 | G58: 68.30 | H58: 72.50
A59: 57 | B59: 许一盛 | C59: 女 | D59: 幼儿教师职位四 | E59: 214332010867605839 | F59: 82.30 | G59: 61.26 | H59: 71.78
A60: 58 | B60: 王筱玮 | C60: 女 | D60: 幼儿教师职位四 | E60: 214416635707138103 | F60: 81.06 | G60: 61.30 | H60: 71.18
A61: 59 | B61: 王喜娜 | C61: 女 | D61: 幼儿教师职位四 | E61: 215103285772931630 | F61: 76.18 | G61: 60.36 | H61: 68.27
A62: 60 | B62: 朱小玲 | C62: 女 | D62: 幼儿教师职位四 | E62: 215120686556107342 | F62: 68.90 | G62: 59.76 | H62: 64.33
A63: 61 | B63: 于小丹 | C63: 女 | D63: 幼儿教师职位四 | E63: 215117640790849766 | K63: 缺考
A64: 62 | B64: 魏子怡 | C64: 女 | D64: 幼儿教师职位五 | E64: 214790797697159399 | F64: 86.10 | G64: 83.00 | H64: =(F64+G64)/2 -> 84.55 | I64: Y | J64: 是
A65: 63 | B65: 王雪 | C65: 女 | D65: 幼儿教师职位五 | E65: 214472383174697236 | F65: 82.60 | G65: 80.40 | H65: 81.50 | I65: Y | J65: 是
A66: 64 | B66: 张琳 | C66: 女 | D66: 幼儿教师职位五 | E66: 214869566025822468 | F66: 82.00 | G66: 77.30 | H66: 79.65 | I66: Y | J66: 是
A67: 65 | B67: 崔钰琪 | C67: 女 | D67: 幼儿教师职位五 | E67: 214733182506000752 | F67: 78.20 | G67: 78.20 | H67: 78.20 | I67: Y | J67: 是
A68: 66 | B68: 黄潇迪 | C68: 女 | D68: 幼儿教师职位五 | E68: 214731590025294008 | F68: 74.60 | G68: 78.10 | H68: 76.35 | I68: Y | J68: 是
A69: 67 | B69: 毕雨彤 | C69: 女 | D69: 幼儿教师职位五 | E69: 214411206914719945 | F69: 76.90 | G69: 75.30 | H69: 76.10 | I69: Y | J69: 是
A70: 68 | B70: 臧玉硕 | C70: 女 | D70: 幼儿教师职位五 | E70: 214318517028257975 | F70: 76.20 | G70: 75.80 | H70: 76.00 | I70: Y | J70: 是
A71: 69 | B71: 王雅梦 | C71: 女 | D71: 幼儿教师职位五 | E71: 215106303004152194 | F71: 75.90 | G71: 75.40 | H71: 75.65 | I71: Y | J71: 是
A72: 70 | B72: 张瑜 | C72: 女 | D72: 幼儿教师职位五 | E72: 214865110467055891 | F72: 74.56 | G72: 72.26 | H72: 73.41 | I72: Y
A73: 71 | B73: 解翔燕 | C73: 女 | D73: 幼儿教师职位五 | E73: 214481587818094876 | F73: 74.36 | G73: 71.56 | H73: 72.96 | I73: Y
A74: 72 | B74: 杨茗 | C74: 女 | D74: 幼儿教师职位五 | E74: 214516573078278404 | F74: 74.80 | G74: 71.00 | H74: 72.90 | I74: Y
A75: 73 | B75: 薛春迎 | C75: 女 | D75: 幼儿教师职位五 | E75: 214851792683546228 | F75: 61.46 | G75: 59.40 | H75: 60.43
A76: 74 | B76: 李春风 | C76: 女 | D76: 幼儿教师职位五 | E76: 214796531193295063 | F76: 58.70 | G76: 59.50 | H76: 59.10
A77: 75 | B77: 张慧 | C77: 女 | D77: 幼儿教师职位五 | E77: 214686298282320038 | F77: 58.96 | G77: 57.30 | H77: 58.13
A78: 76 | B78: 牟嘉慧 | C78: 女 | D78: 幼儿教师职位五 | E78: 214839373202711015 | K78: 缺考
A79: 77 | B79: 王琪琪 | C79: 女 | D79: 幼儿教师职位六 | E79: 214827643831492851 | F79: 90.98 | G79: 81.70 | H79: =AVERAGE(C79:G79) -> 86.34 | I79: Y | J79: 是
A80: 78 | B80: 张瑾瑶 | C80: 女 | D80: 幼儿教师职位六 | E80: 214713383159755035 | F80: 89.00 | G80: 82.18 | H80: 85.59 | I80: Y | J80: 是
A81: 79 | B81: 董婷 | C81: 女 | D81: 幼儿教师职位六 | E81: 215117317393338947 | F81: 85.96 | G81: 80.76 | H81: 83.36 | I81: Y | J81: 是
A82: 80 | B82: 张璇 | C82: 女 | D82: 幼儿教师职位六 | E82: 215111700989494770 | F82: 84.92 | G82: 79.68 | H82: 82.30 | I82: Y | J82: 是
A83: 81 | B83: 许紫微 | C83: 女 | D83: 幼儿教师职位六 | E83: 214488070144331930 | F83: 82.04 | G83: 82.32 | H83: 82.18 | I83: Y | J83: 是
A84: 82 | B84: 滕洁 | C84: 女 | D84: 幼儿教师职位六 | E84: 215038213922963723 | F84: 86.40 | G84: 77.70 | H84: 82.05 | I84: Y | J84: 是
A85: 83 | B85: 李秀君 | C85: 女 | D85: 幼儿教师职位六 | E85: 215123173891621393 | F85: 84.54 | G85: 77.56 | H85: 81.05 | I85: Y | J85: 是
A86: 84 | B86: 张玲 | C86: 女 | D86: 幼儿教师职位六 | E86: 215124372032316100 | F86: 85.20 | G86: 75.54 | H86: 80.37 | I86: Y | J86: 是
A87: 85 | B87: 刘婷婷 | C87: 女 | D87: 幼儿教师职位六 | E87: 214693089007337667 | F87: 83.66 | G87: 75.78 | H87: 79.72 | I87: Y | J87: 是
A88: 86 | B88: 殷乙清 | C88: 女 | D88: 幼儿教师职位六 | E88: 214710949943325925 | F88: 86.14 | G88: 72.66 | H88: 79.40 | I88: Y | J88: 是
A89: 87 | B89: 沈钧丽 | C89: 女 | D89: 幼儿教师职位六 | E89: 215062375093739839 | F89: 84.00 | G89: 74.04 | H89: 79.02 | I89: Y | J89: 是
A90: 88 | B90: 丁欣 | C90: 女 | D90: 幼儿教师职位六 | E90: 214878579664814329 | F90: 83.78 | G90: 72.62 | H90: 78.20 | I90: Y | J90: 是
A91: 89 | B91: 李云 | C91: 女 | D91: 幼儿教师职位六 | E91: 214477778173703111 | F91: 83.30 | G91: 71.20 | H91: 77.25 | I91: Y | J91: 是
A92: 90 | B92: 王帅帅 | C92: 女 | D92: 幼儿教师职位六 | E92: 214870472620454128 | F92: 83.30 | G92: 70.12 | H92: 76.71 | I92: Y | J92: 是
A93: 91 | B93: 丁祥婷 | C93: 女 | D93: 幼儿教师职位六 | E93: 215022139135480260 | F93: 79.84 | G93: 71.54 | H93: 75.69 | I93: Y | J93: 是
A94: 92 | B94: 臧晓 | C94: 女 | D94: 幼儿教师职位六 | E94: 214731258599780535 | F94: 80.68 | G94: 69.38 | H94: 75.03 | I94: Y | J94: 是
A95: 93 | B95: 代艳 | C95: 女 | D95: 幼儿教师职位六 | E95: 214390136325263553 | F95: 77.84 | G95: 72.00 | H95: 74.92 | I95: Y | J95: 是
A96: 94 | B96: 卞加超 | C96: 女 | D96: 幼儿教师职位六 | E96: 215101045246980434 | F96: 70.74 | G96: 77.80 | H96: 74.27 | I96: Y | J96: 是
A97: 95 | B97: 杨双荣 | C97: 女 | D97: 幼儿教师职位六 | E97: 214747320208773338 | F97: 81.90 | G97: 65.72 | H97: 73.81 | I97: Y | J97: 是
A98: 96 | B98: 赵英洁 | C98: 女 | D98: 幼儿教师职位六 | E98: 214324277644882108 | F98: 73.60 | G98: 72.42 | H98: 73.01 | I98: Y | J98: 是
A99: 97 | B99: 邵佳 | C99: 女 | D99: 幼儿教师职位六 | E99: 214324213736157614 | F99: 70.12 | G99: 74.38 | H99: 72.25 | I99: Y | J99: 是
A100: 98 | B100: 丁欣 | C100: 女 | D100: 幼儿教师职位六 | E100: 214877038341996798 | F100: 71.10 | G100: 72.04 | H100: 71.57 | I100: Y
A101: 99 | B101: 高姗姗 | C101: 女 | D101: 幼儿教师职位六 | E101: 214330128115892277 | F101: 75.46 | G101: 63.10 | H101: 69.28 | I101: Y
A102: 100 | B102: 王明芝 | C102: 女 | D102: 幼儿教师职位六 | E102: 214392716006654310 | F102: 0.00 | G102: 0.00 | H102: 0.00
A103: 101 | B103: 蔡雯琦 | C103: 女 | D103: 幼儿教师职位六 | E103: 214528997218989067 | K103: 缺考
A104: 102 | B104: 张玉岷 | C104: 女 | D104: 幼儿教师职位六 | E104: 215043534967952041 | K104: 缺考
A105: 103 | B105: 郝思佳 | C105: 女 | D105: 幼儿教师职位六 | E105: 215104197253806214 | K105: 缺考
A106: 104 | B106: 朱星羽 | C106: 女 | D106: 幼儿教师职位七 | E106: 215080917578948737 | F106: 90.46 | G106: 88.80 | H106: =(F106+G106)/2 -> 89.63 | I106: Y | J106: 是
A107: 105 | B107: 张悦瑶 | C107: 女 | D107: 幼儿教师职位七 | E107: 214320652461707323 | F107: 87.06 | G107: 86.10 | H107: 86.58 | I107: Y | J107: 是
A108: 106 | B108: 杨晓婷 | C108: 女 | D108: 幼儿教师职位七 | E108: 215076029973291586 | F108: 83.70 | G108: 88.10 | H108: 85.90 | I108: Y | J108: 是
A109: 107 | B109: 玄洪迪 | C109: 女 | D109: 幼儿教师职位七 | E109: 215009497540890909 | F109: 85.30 | G109: 83.14 | H109: 84.22 | I109: Y | J109: 是
A110: 108 | B110: 张丽萍 | C110: 女 | D110: 幼儿教师职位七 | E110: 214765086433337787 | F110: 81.30 | G110: 82.44 | H110: 81.87 | I110: Y | J110: 是
A111: 109 | B111: 李文霞 | C111: 女 | D111: 幼儿教师职位七 | E111: 214495208325456052 | F111: 86.16 | G111: 76.50 | H111: 81.33 | I111: Y | J111: 是
A112: 110 | B112: 张晓 | C112: 女 | D112: 幼儿教师职位七 | E112: 214829511760593122 | F112: 82.10 | G112: 78.74 | H112: 80.42 | I112: Y | J112: 是
A113: 111 | B113: 逄甜甜 | C113: 女 | D113: 幼儿教师职位七 | E113: 214338758395556080 | F113: 79.10 | G113: 74.60 | H113: 76.85 | I113: Y | J113: 是
A114: 112 | B114: 崔甜甜 | C114: 女 | D114: 幼儿教师职位七 | E114: 214363319283364450 | F114: 81.50 | G114: 71.80 | H114: 76.65 | I114: Y
A115: 113 | B115: 丁瑶 | C115: 女 | D115: 幼儿教师职位七 | E115: 214853630535398142 | F115: 81.20 | G115: 70.88 | H115: 76.04 | I115: Y
A116: 114 | B116: 邵冬梅 | C116: 女 | D116: 幼儿教师职位七 | E116: 214457470112948357 | F116: 77.48 | G116: 72.32 | H116: 74.90 | I116: Y
A117: 115 | B117: 郝佩茹 | C117: 女 | D117: 幼儿教师职位七 | E117: 215113107465548233 | F117: 71.80 | G117: 74.00 | H117: 72.90 | I117: Y
A118: 116 | B118: 薛雯月 | C118: 女 | D118: 幼儿教师职位七 | E118: 215113657653379588 | F118: 64.30 | G118: 59.50 | H118: 61.90
A119: 117 | B119: 张君秋 | C119: 女 | D119: 幼儿教师职位七 | E119: 214402809653825664 | K119: 缺考
A120: 118 | B120: 张一弛 | C120: 男 | D120: 幼儿教师职位七 | E120: 215051238914544322 | K120: 缺考
A121: 119 | B121: 李佳凝 | C121: 女 | D121: 幼儿教师职位七 | E121: 215085799165895000 | K121: 缺考
A122: 120 | B122: 张健南 | C122: 女 | D122: 幼儿教师职位八 | E122: 214870220236535459 | F122: 80.00 | G122: 79.72 | H122: =(F122+G122)/2 -> 79.86 | I122: Y | J122: 是
A123: 121 | B123: 董玲 | C123: 女 | D123: 幼儿教师职位八 | E123: 215134912326554534 | F123: 79.54 | G123: 79.74 | H123: 79.64 | I123: Y | J123: 是
A124: 122 | B124: 徐琨栋 | C124: 男 | D124: 幼儿教师职位八 | E124: 214421233327141253 | F124: 59.60 | G124: 59.80 | H124: 59.70
A125: 123 | B125: 孙梦瑜 | C125: 女 | D125: 幼儿教师职位八 | E125: 214319653898592319 | F125: 59.00 | G125: 57.24 | H125: 58.12
A126: 124 | B126: 张晓彤 | C126: 女 | D126: 幼儿教师职位九 | E126: 215103236036858197 | F126: 87.70 | G126: 80.50 | H126: =AVERAGE(C126:G126) -> 84.10 | I126: Y | J126: 是
A127: 125 | B127: 金欣 | C127: 女 | D127: 幼儿教师职位九 | E127: 214410670131839082 | F127: 87.50 | G127: 77.86 | H127: 82.68 | I127: Y | J127: 是
A128: 126 | B128: 赵晓欣 | C128: 女 | D128: 幼儿教师职位九 | E128: 214829122583659286 | F128: 78.86 | G128: 69.70 | H128: 74.28 | I128: Y | J128: 是
A129: 127 | B129: 李晓熠 | C129: 女 | D129: 幼儿教师职位九 | E129: 215095786067854393 | F129: 79.30 | G129: 64.90 | H129: 72.10 | I129: Y | J129: 是
A130: 128 | B130: 韩雨潼 | C130: 女 | D130: 幼儿教师职位九 | E130: 214718158639194493 | F130: 80.06 | G130: 63.04 | H130: 71.55 | I130: Y | J130: 是
A131: 129 | B131: 刘晓波 | C131: 女 | D131: 幼儿教师职位九 | E131: 214768237781680372 | F131: 77.70 | G131: 64.70 | H131: 71.20 | I131: Y
A132: 130 | B132: 龚静 | C132: 女 | D132: 幼儿教师职位九 | E132: 214886367241585793 | F132: 74.84 | G132: 59.90 | H132: 67.37
A133: 131 | B133: 陈潇 | C133: 女 | D133: 幼儿教师职位九 | E133: 214344899292733535 | K133: 缺考
A134: 132 | B134: 李国庆 | C134: 女 | D134: 幼儿教师职位九 | E134: 215105231284019562 | K134: 缺考
A135: 133 | B135: 窦晓芸 | C135: 女 | D135: 幼儿教师职位十 | E135: 214871997237297993 | F135: 72.20 | G135: 64.60 | H135: =F135*0.5+G135*0.5 -> 68.40 | I135: Y | J135: 是
A136: 134 | B136: 孙文庆 | C136: 女 | D136: 幼儿教师职位十 | E136: 214879041281548522 | F136: 68.00 | G136: 67.40 | H136: =F136*0.5+G136*0.5 -> 67.70 | I136: Y | J136: 是
A137: 135 | B137: 李云晓 | C137: 女 | D137: 幼儿教师职位十一 | E137: 215080559590917471 | F137: 85.80 | G137: 88.70 | H137: =AVERAGE(C137:G137) -> 87.25 | I137: Y | J137: 是
A138: 136 | B138: 于梦暖 | C138: 女 | D138: 幼儿教师职位十一 | E138: 215049487918453438 | F138: 83.00 | G138: 86.80 | H138: 84.90 | I138: Y | J138: 是
A139: 137 | B139: 任羽佳 | C139: 女 | D139: 幼儿教师职位十一 | E139: 215090487147775374 | F139: 80.56 | G139: 87.00 | H139: 83.78 | I139: Y | J139: 是
A140: 138 | B140: 王有慧 | C140: 女 | D140: 幼儿教师职位十一 | E140: 215075995634536799 | F140: 81.26 | G140: 80.40 | H140: 80.83 | I140: Y | J140: 是
A141: 139 | B141: 王国铖 | C141: 男 | D141: 幼儿教师职位十一 | E141: 215112666447049024 | F141: 81.46 | G141: 79.86 | H141: 80.66 | I141: Y | J141: 是
A142: 140 | B142: 张嫣然 | C142: 女 | D142: 幼儿教师职位十一 | E142: 214431520591704461 | F142: 78.84 | G142: 81.48 | H142: 80.16 | I142: Y | J142: 是
A143: 141 | B143: 陈媛媛 | C143: 女 | D143: 幼儿教师职位十一 | E143: 215116470231961946 | F143: 81.08 | G143: 78.92 | H143: 80.00 | I143: Y | J143: 是
A144: 142 | B144: 刘婧 | C144: 女 | D144: 幼儿教师职位十一 | E144: 215081813545222564 | F144: 81.62 | G144: 77.22 | H144: 79.42 | I144: Y | J144: 是
A145: 143 | B145: 刘敏 | C145: 女 | D145: 幼儿教师职位十一 | E145: 215106022732456611 | F145: 78.80 | G145: 79.28 | H145: 79.04 | I145: Y | J145: 是
A146: 144 | B146: 孙丹丹 | C146: 女 | D146: 幼儿教师职位十一 | E146: 214337188647911541 | F146: 76.42 | G146: 72.88 | H146: 74.65 | I146: Y | J146: 是
A147: 145 | B147: 邓瑞 | C147: 女 | D147: 幼儿教师职位十一 | E147: 214373408182575228 | F147: 74.00 | G147: 75.08 | H147: 74.54 | I147: Y | J147: 是
A148: 146 | B148: 李晨 | C148: 女 | D148: 幼儿教师职位十一 | E148: 214337074604773469 | F148: 73.30 | G148: 70.92 | H148: 72.11 | I148: Y | J148: 是
A149: 147 | B149: 肖美娇 | C149: 女 | D149: 幼儿教师职位十一 | E149: 214470898416235454 | F149: 62.00 | G149: 70.86 | H149: 66.43 | I149: Y | J149: 是
A150: 148 | B150: 刘亚宁 | C150: 女 | D150: 幼儿教师职位十一 | E150: 214477364334314099 | K150: 缺考
A151: 149 | B151: 温静 | C151: 女 | D151: 幼儿教师职位十一 | E151: 214753805269725834 | K151: 缺考
A152: 150 | B152: 杜胜男 | C152: 女 | D152: 幼儿教师职位十一 | E152: 214782450025533689 | K152: 缺考
A153: 151 | B153: 孙健萍 | C153: 女 | D153: 幼儿教师职位十一 | E153: 215084195528197487 | K153: 缺考
A154: 152 | B154: 刘佳欣 | C154: 女 | D154: 幼儿教师职位十一 | E154: 215085307647899673 | K154: 缺考
A155: 153 | B155: 管群 | C155: 女 | D155: 幼儿教师职位十二 | E155: 214379933219304106 | F155: 85.48 | G155: 69.92 | H155: =AVERAGE(C155:G155) -> 77.70 | I155: Y | J155: 是
A156: 154 | B156: 宋杰 | C156: 女 | D156: 幼儿教师职位十二 | E156: 214337163507155313 | F156: 69.02 | G156: 66.78 | H156: 67.90 | I156: Y | J156: 是
A157: 155 | B157: 隋东晓 | C157: 女 | D157: 幼儿教师职位十二 | E157: 215037883680215317 | F157: 73.94 | G157: 60.44 | H157: 67.19 | I157: Y | J157: 是
A158: 156 | B158: 吴朝阳 | C158: 女 | D158: 幼儿教师职位十二 | E158: 214326765865291947 | K158: 缺考
A159: 157 | B159: 刘湘楠 | C159: 女 | D159: 幼儿教师职位十三 | E159: 214372497922081238 | F159: 82.42 | G159: 75.42 | H159: =AVERAGE(C159:G159) -> 78.92 | I159: Y | J159: 是
A160: 158 | B160: 葛温俏 | C160: 女 | D160: 幼儿教师职位十三 | E160: 214418847418204277 | F160: 75.36 | G160: 77.18 | H160: 76.27 | I160: Y | J160: 是
A161: 159 | B161: 李文娇 | C161: 女 | D161: 幼儿教师职位十三 | E161: 215072637188192229 | F161: 78.22 | G161: 72.88 | H161: 75.55 | I161: Y | J161: 是
A162: 160 | B162: 陈明宇 | C162: 女 | D162: 幼儿教师职位十三 | E162: 214319045250613317 | K162: 缺考
A163: 161 | B163: 姜雅馨 | C163: 女 | D163: 幼儿教师职位十三 | E163: 215087900444984346 | K163: 缺考
A164: 162 | B164: 毛一铭 | C164: 女 | D164: 幼儿教师职位十四 | E164: 214835366375605303 | K164: 缺考
A165: 163 | B165: 满君 | C165: 女 | D165: 幼儿教师职位十四 | E165: 214884072516911437 | K165: 缺考
A166: 164 | B166: 刘思妍 | C166: 女 | D166: 幼儿教师职位十四 | E166: 215050337290187154 | K166: 缺考
A167: 165 | B167: 王竹 | C167: 女 | D167: 幼儿教师职位十五 | E167: 214467215142048094 | F167: 81.64 | G167: 81.10 | H167: =AVERAGE(C167:G167) -> 81.37 | I167: Y | J167: 是
A168: 166 | B168: 于蕊 | C168: 女 | D168: 幼儿教师职位十五 | E168: 214771571536109813 | F168: 81.66 | G168: 73.70 | H168: 77.68 | I168: Y | J168: 是
A169: 167 | B169: 王丹丹 | C169: 女 | D169: 幼儿教师职位十五 | E169: 214345306823876771 | F169: 81.48 | G169: 73.64 | H169: 77.56 | I169: Y | J169: 是
A170: 168 | B170: 管清雪 | C170: 女 | D170: 幼儿教师职位十五 | E170: 214847951917430378 | F170: 78.30 | G170: 73.48 | H170: 75.89 | I170: Y | J170: 是
A171: 169 | B171: 王镭 | C171: 女 | D171: 幼儿教师职位十五 | E171: 214337415874285642 | F171: 75.06 | G171: 71.90 | H171: 73.48 | I171: Y | J171: 是
A172: 170 | B172: 车晓 | C172: 女 | D172: 幼儿教师职位十五 | E172: 214464338277319276 | F172: 73.86 | G172: 72.88 | H172: 73.37 | I172: Y | J172: 是
A173: 171 | B173: 王晶如 | C173: 女 | D173: 幼儿教师职位十五 | E173: 215047346176893223 | F173: 75.60 | G173: 64.52 | H173: 70.06 | I173: Y | J173: 是
A174: 172 | B174: 范贵敏 | C174: 女 | D174: 幼儿教师职位十五 | E174: 214876449033900292 | F174: 75.00 | G174: 64.96 | H174: 69.98 | I174: Y | J174: 是
A175: 173 | B175: 厉衍梅 | C175: 女 | D175: 幼儿教师职位十五 | E175: 214325628919497008 | F175: 69.18 | G175: 70.12 | H175: 69.65 | I175: Y | J175: 是
A176: 174 | B176: 朱国香 | C176: 女 | D176: 幼儿教师职位十五 | E176: 214331450663825483 | F176: 74.20 | G176: 64.66 | H176: 69.43 | I176: Y | J176: 是
A177: 175 | B177: 韩冰颖 | C177: 女 | D177: 幼儿教师职位十五 | E177: 214327199371768258 | F177: 74.08 | G177: 64.52 | H177: 69.30 | I177: Y | J177: 是
A178: 176 | B178: 王丹丹 | C178: 女 | D178: 幼儿教师职位十五 | E178: 214735985869734759 | F178: 68.88 | G178: 64.56 | H178: 66.72 | I178: Y | J178: 是
A179: 177 | B179: 赵蕾 | C179: 女 | D179: 幼儿教师职位十五 | E179: 214863732277457134 | F179: 64.58 | G179: 59.54 | H179: 62.06
A180: 178 | B180: 张欣 | C180: 女 | D180: 幼儿教师职位十五 | E180: 215070370175378019 | F180: 64.72 | G180: 57.54 | H180: 61.13
A181: 179 | B181: 于子涵 | C181: 女 | D181: 幼儿教师职位十五 | E181: 214417168740360325 | F181: 61.70 | G181: 59.10 | H181: 60.40
A182: 180 | B182: 武少燕 | C182: 女 | D182: 幼儿教师职位十五 | E182: 214415109135676248 | F182: 61.34 | G182: 55.38 | H182: 58.36
A183: 181 | B183: 丁小洁 | C183: 女 | D183: 幼儿教师职位十五 | E183: 214485282534412419 | F183: 52.48 | G183: 61.64 | H183: 57.06
A184: 182 | B184: 刘丽莉 | C184: 女 | D184: 幼儿教师职位十五 | E184: 214501509495492781 | F184: 52.50 | G184: 57.80 | H184: 55.15
A185: 183 | B185: 卢爱玲 | C185: 女 | D185: 幼儿教师职位十五 | E185: 214316293053095959 | F185: 52.56 | G185: 54.46 | H185: 53.51
A186: 184 | B186: 王文强 | C186: 男 | D186: 幼儿教师职位十五 | E186: 215061640234852642 | F186: 0.00 | G186: 0.00 | H186: 0.00
A187: 185 | B187: 潘悦 | C187: 女 | D187: 幼儿教师职位十五 | E187: 214386319978332250 | K187: 缺考
A188: 186 | B188: 程凤 | C188: 女 | D188: 幼儿教师职位十五 | E188: 214445906513338508 | K188: 缺考
A189: 187 | B189: 程娜 | C189: 女 | D189: 幼儿教师职位十五 | E189: 214541328577618217 | K189: 缺考
A190: 188 | B190: 张金玉 | C190: 女 | D190: 幼儿教师职位十五 | E190: 214768750250160795 | K190: 缺考
A191: 189 | B191: 魏芳 | C191: 女 | D191: 幼儿教师职位十六 | E191: 214408533062595381 | F191: 88.20 | G191: 87.10 | H191: =AVERAGE(C191:G191) -> 87.65 | I191: Y | J191: 是
A192: 190 | B192: 薛雪 | C192: 女 | D192: 幼儿教师职位十六 | E192: 214853780272042412 | F192: 80.66 | G192: 85.34 | H192: 83.00 | I192: Y | J192: 是
A193: 191 | B193: 张玉双 | C193: 女 | D193: 幼儿教师职位十六 | E193: 214493409291985041 | F193: 81.72 | G193: 82.68 | H193: 82.20 | I193: Y | J193: 是
A194: 192 | B194: 杜梦瑶 | C194: 女 | D194: 幼儿教师职位十六 | E194: 214694323718168768 | F194: 80.66 | G194: 83.46 | H194: 82.06 | I194: Y | J194: 是
A195: 193 | B195: 武久焜 | C195: 女 | D195: 幼儿教师职位十六 | E195: 214431321240563837 | F195: 75.36 | G195: 78.86 | H195: 77.11 | I195: Y
A196: 194 | B196: 薛晓欢 | C196: 女 | D196: 幼儿教师职位十六 | E196: 214857530793439482 | F196: 79.50 | G196: 74.72 | H196: 77.11 | I196: Y
A197: 195 | B197: 赵婕 | C197: 女 | D197: 幼儿教师职位十六 | E197: 214411092254998655 | F197: 73.26 | G197: 74.36 | H197: 73.81
A198: 196 | B198: 王秋艳 | C198: 女 | D198: 幼儿教师职位十六 | E198: 214318609550434417 | F198: 69.50 | G198: 72.30 | H198: 70.90
A199: 197 | B199: 张舒 | C199: 女 | D199: 幼儿教师职位十七 | E199: 214370831432810821 | F199: 80.04 | G199: 75.42 | H199: 77.73 | I199: Y | J199: 是
A200: 198 | B200: 饶孟雨 | C200: 女 | D200: 幼儿教师职位十七 | E200: 214353212252274765 | F200: 76.06 | G200: 79.26 | H200: 77.66 | I200: Y | J200: 是
... 161 more rows
